fUST/lending_fUST_20240904
["ID","MTS","AMOUNT","RATE_DAILY","PERIOD"]
[337097264,1725423067925,-2926.8748927,0.00033698,2]
[337097265,1725423067935,-9610.84511791,0.00033698,2]
[337097266,1725423067944,-1202.9803941,0.00033698,2]
[337097267,1725423067954,-999.3702918,0.00033698,2]
[337097268,1725423067963,-5112.01959473,0.00033698,2]
[337097269,1725423067973,-65989.98,0.000337,14]
[337097270,1725423067982,-200.0,0.000339,17]
[337097271,1725423067991,-500.0,0.00033954,7]
[337097272,1725423068001,-1500.0,0.00034,2]
[337097273,1725423068010,-1500.0,0.00034,2]
[337097274,1725423068019,-1500.0,0.00034,2]
[337097275,1725423068029,-1500.0,0.00034,2]
[337097276,1725423068039,-1513.96,0.00034,2]
[337097277,1725423068050,-1500.0,0.00034,2]
[337097278,1725423068062,-1500.0,0.00034,2]
[337097279,1725423068073,-200.0,0.00034,18]
[337097280,1725423068083,-500.0,0.00034,7]
[337097281,1725423068094,-553.38742818,0.00034078,2]
[337097282,1725423068104,-153.94007628,0.00034081,7]
[337097283,1725423068115,-184.90006614,0.00034089,5]
[337097284,1725423068126,-305.12380547,0.00034521,120]
[337097285,1725423068137,-153.0,0.00034593,2]
[337097286,1725423068148,-153.0,0.00034593,2]
[337097287,1725423068158,-153.0,0.00034593,2]
[337097288,1725423068172,-153.0,0.00034593,2]
[337097289,1725423068182,-153.0,0.00034593,2]
[337097290,1725423068193,-153.0,0.00034593,2]
[337097291,1725423068203,-153.0,0.00034593,2]
[337097292,1725423068214,-151.0,0.000346,14]
[337097293,1725423068224,-151.0,0.000346,2]
[337097294,1725423068235,-158.518583,0.000346,14]
[337097295,1725423068247,-177.934709,0.000346,14]
[337097296,1725423068257,-151.0,0.000346,14]
[337097297,1725423068268,-151.0,0.000346,14]
[337097298,1725423068277,-151.0,0.000346,14]
[337097299,1725423068287,-151.0,0.000346,14]
[337097300,1725423068297,-151.0,0.000346,14]
[337097301,1725423068306,-151.0,0.000346,14]
[337097302,1725423068316,-151.0,0.000346,14]
[337097303,1725423068325,-151.0,0.000346,14]
[337097304,1725423068337,-151.0,0.000346,14]
[337097305,1725423068350,-151.0,0.000346,14]
[337097306,1725423068361,-2340.430906,0.000346,14]
[337097307,1725423068372,-2340.430906,0.000346,14]
[337097308,1725423068384,-437.16068,0.000346,14]
[337097309,1725423068395,-437.16068,0.000346,14]
[337097310,1725423068405,-151.0,0.000346,14]
[337097311,1725423068414,-421.382681,0.000346,14]
[337097312,1725423068426,-421.382681,0.000346,14]
[337097313,1725423068435,-151.0,0.000346,2]
[337097314,1725423068446,-307.7598817,0.00034867,2]
[337097315,1725423068457,-742.9998258,0.00034867,2]
[337097316,1725423068467,-600.0,0.00034894,120]
[337097317,1725423068478,-200.0,0.000349,21]
[337097318,1725423068491,-191.53971097,0.0003494,14]
[337097319,1725423068502,-185715.4808519,0.00035,120]
[337097320,1725423068512,-5264.84089994,0.00035,120]
[337097321,1725423068522,-200.0,0.00035,15]
[337097322,1725423068532,-2000.0,0.00035,30]
[337097323,1725423068543,-200.0,0.00035,22]
[337097324,1725423068552,-500.0,0.00035,7]
[337097325,1725423068562,-3000.0,0.00035,7]
[337097326,1725423068574,-1000.0,0.00035,35]
[337097327,1725423068583,-152.226429,0.00035047,14]
[337097328,1725423068597,-285.534481,0.00035047,2]
[337097329,1725423068606,-16086.08829874,0.00035229,2]
[337097330,1725423068616,-871.30497014,0.00035229,4]
[337097331,1725423068625,-457.5549676,0.00035229,2]
[337097332,1725423068634,-150.54208573,0.00035229,2]
[337097333,1725423068644,-310.9513769,0.00035229,120]
[337097334,1725423068653,-3223.0,0.00035229,120]
[337097335,1725423068662,-200.0,0.00035229,30]
[337097336,1725423068672,-200.0,0.00035229,30]
[337097337,1725423068681,-200.0,0.00035229,30]
[337097338,1725423068690,-200.0,0.00035229,30]
[337097339,1725423068699,-200.0,0.00035229,30]
[337097340,1725423068708,-200.0,0.00035229,30]
[337097341,1725423068718,-250.7,0.00035229,30]
[337097342,1725423068728,-311.6492776,0.00035229,120]
[337097343,1725423068739,-200.0,0.00035229,30]
[337097344,1725423068749,-200.0,0.00035229,30]
[337097345,1725423068760,-200.0,0.00035229,30]
[337097346,1725423068771,-200.0,0.00035229,30]
[337097347,1725423068782,-200.0,0.00035229,30]
[337097348,1725423068793,-200.0,0.00035229,30]
[337097349,1725423068804,-250.699999,0.00035229,30]
[337097350,1725423068815,-200.0,0.00035229,30]
[337097351,1725423068825,-200.0,0.00035229,30]
[337097352,1725423068835,-200.0,0.00035229,30]
[337097353,1725423068848,-200.0,0.00035229,30]
[337097354,1725423068857,-200.0,0.00035229,30]
[337097355,1725423068866,-200.0,0.00035229,30]
[337097356,1725423068875,-250.7,0.00035229,30]
[337097357,1725423068884,-200.0,0.00035229,30]
[337097358,1725423068893,-200.0,0.00035229,30]
[337097359,1725423068902,-200.0,0.00035229,30]
[337097360,1725423068911,-200.0,0.00035229,30]
[337097361,1725423068920,-200.0,0.00035229,30]
[337097362,1725423068930,-200.0,0.00035229,30]
[337097363,1725423068940,-250.7,0.00035229,30]
[337097364,1725423068949,-2499.999999,0.00035229,120]
[337097365,1725423068959,-562752.57523434,0.00035229,120]
[337097366,1725423068982,-2372.7,0.00035229,120]
[337097367,1725423068993,-24352.39855743,0.00035229,120]
[337097368,1725423069014,-500.0,0.00027397,2]
[337097369,1725423069024,-500.0,0.00029863,2]
[337097370,1725423069034,-32899.06526159,0.00035229,120]
[337097371,1725423069046,-20049.81902395,0.00035229,120]
[337097372,1725423069350,-21.58492747,0.00028767,2]
[337097373,1725423069362,-478.41507253,0.00028767,2]
[337097374,1725423069371,-500.0,0.00030136,2]
[337097375,1725423069381,-500.0,0.0003041,2]
[337097376,1725423069390,-500.0,0.00030684,2]
[337097377,1725423069400,-449.60975543,0.00030958,2]
[337097378,1725423069410,-75624.78772509,0.00035229,120]
[337097379,1725423069420,-151.0,0.00035229,14]
[337097380,1725423069430,-2340.430906,0.00035229,14]
[337097381,1725423069441,-2340.430906,0.00035229,14]
[337097382,1725423069451,-437.16068,0.00035229,14]
[337097383,1725423069461,-437.16068,0.00035229,14]
[337097384,1725423069471,-151.0,0.00035229,14]
[337097385,1725423069481,-421.382681,0.00035229,14]
[337097386,1725423069492,-421.382681,0.00035229,14]
[337097387,1725423069502,-151.0,0.00035229,2]
[337097388,1725423069511,-151.0,0.00035234,14]
[337097389,1725423069522,-151.0,0.00035234,14]
[337097390,1725423069532,-151.0,0.00035234,14]
[337097391,1725423069541,-151.0,0.00035234,14]
[337097392,1725423069550,-151.0,0.00035234,14]
[337097393,1725423069560,-151.0,0.00035234,14]
[337097394,1725423069569,-172.614377,0.00035234,14]
[337097395,1725423069579,-151.0,0.00035234,14]
[337097396,1725423069588,-151.0,0.00035234,14]
[337097397,1725423069599,-151.0,0.00035452,120]
[337097398,1725423069608,-1000.0,0.00035616,118]
[337097399,1725423069617,-1000.0,0.00035616,118]
[337097400,1725423069627,-1000.0,0.00035616,118]
[337097401,1725423069636,-1000.0,0.00035616,118]
[337097402,1725423069646,-1000.0,0.00035616,118]
[337097403,1725423069656,-1000.0,0.00035616,118]
[337097404,1725423069665,-1000.0,0.00035616,118]
[337097405,1725423069674,-1000.0,0.00035616,118]
[337097406,1725423069684,-1000.0,0.00035616,118]
[337097407,1725423069693,-982.47186444,0.00035616,118]
[337097408,1725423069702,-500.0,0.00035616,7]
[337097409,1725423069711,-500.0,0.00035616,7]
[337097410,1725423069720,-500.0,0.00035616,7]
[337097411,1725423069729,-500.0,0.00035616,7]
[337097412,1725423069739,-500.0,0.00035616,7]
[337097413,1725423069748,-500.0,0.00035616,7]
[337097414,1725423069756,-500.0,0.00035616,7]
[337097415,1725423069766,-500.0,0.00035616,7]
[337097416,1725423069776,-321.91923352,0.00035616,7]
[337097417,1725423069788,-500.0,0.00035616,7]
[337097418,1725423069798,-500.0,0.00035616,7]
[337097419,1725423069808,-500.0,0.00035616,7]
[337097420,1725423069819,-2454.27031755,0.0003571,2]
[337097421,1725423069830,-113109.72,0.000358,14]
[337097422,1725423069843,-40699.56420806,0.000358,14]
[337097423,1725423069859,-165977.23948223,0.000358,14]
[337097431,1725423933149,-2036.98881249,0.00024307,2]
[337097432,1725423955118,-2279.95667908,0.00024029,2]
[337097433,1725424037253,-228.9195781,0.00023573,2]
[337097434,1725424037275,-159.04603406,0.00024028,2]
[337097435,1725424042134,-140.95396594,0.00024028,2]
[337097436,1725424042155,-300.0,0.00024028,2]
[337097437,1725424042176,-2558.05723506,0.00024029,2]
[337097438,1725424046112,-1349.26288837,0.00024029,2]
[337097439,1725424046142,-3759.38335586,0.00024029,2]
[337097440,1725424047105,-720.78049,0.00024029,2]
[337097441,1725424051112,-4716.65310822,0.00024029,2]
[337097442,1725424053107,-2809.08518949,0.00024029,2]
[337097444,1725424092970,399.17396977,0.000167,2]
[337097447,1725424146126,-300.0,0.00022999,2]
[337097448,1725424146149,-300.0,0.00022999,2]
[337097449,1725424146170,-239.99202206,0.00023,2]
[337097450,1725424146192,-11423.30610364,0.00023,2]
[337097451,1725424146214,-1748.64271945,0.00023,2]
[337097452,1725424146236,-7393.85123074,0.00024,60]
[337097453,1725424146259,-6706.82105392,0.00024029,2]
[337097454,1725424146280,-21508.2863112,0.00024165,2]
[337097455,1725424146301,-963.01118751,0.00024307,2]
[337097456,1725424146323,-250.0,0.0002437,2]
[337097457,1725424146345,-199.7982756,0.00024437,2]
[337097458,1725424152105,-50.2017244,0.00024437,2]
[337097459,1725424152130,-250.0,0.00024503,2]
[337097460,1725424152156,-250.0,0.0002457,2]
[337097461,1725424152181,-250.0,0.00024637,2]
[337097462,1725424152202,-585.642039,0.00024658,2]
[337097463,1725424152224,-250.0,0.00024704,2]
[337097464,1725424152251,-600.0,0.00024715,8]
[337097465,1725424152275,-250.0,0.00024771,2]
[337097466,1725424152297,-250.0,0.00024838,2]
[337097467,1725424152318,-250.0,0.00024905,2]
[337097468,1725424152342,-386.0,0.00024967,2]
[337097469,1725424152370,-250.0,0.00024971,2]
[337097470,1725424152392,-204.33004543,0.00024973,2]
[337097471,1725424152411,-2796.08,0.0002499,3]
[337097472,1725424152432,-2330.06,0.0002499,3]
[337097473,1725424152452,-3346.57422004,0.00025,7]
[337097474,1725424152472,-310.39353344,0.00025,60]
[337097475,1725424152495,-129626.67510741,0.00025,2]
[337097508,1725424232910,-343.36791284,0.00024973,2]
[337097509,1725424232920,-318.90660779,0.0002499,3]
[337097510,1725424233000,-610.90344062,0.0002499,3]
[337097511,1725424233012,-63.81995159,0.0002499,3]
[337097512,1725424233021,-300.0,0.00024999,2]
[337097513,1725424233031,-300.0,0.00024999,2]
[337097514,1725424233040,-923.56178718,0.00025,2]
[337097515,1725424233530,250.0,0.00024212,2]
[337097516,1725424233992,17.09150073,0.00024278,2]
[337097522,1725424239304,-232.90849927,0.00024278,2]
[337097523,1725424239314,-250.0,0.00024345,2]
[337097524,1725424239323,-250.0,0.00024411,2]
[337097525,1725424239333,-250.0,0.00024478,2]
[337097526,1725424239342,-250.0,0.00024544,2]
[337097527,1725424239352,-250.0,0.0002461,2]
[337097528,1725424239361,-250.0,0.00024677,2]
[337097529,1725424239371,-250.0,0.00024743,2]
[337097530,1725424239381,-250.0,0.0002481,2]
[337097531,1725424239390,-250.0,0.00024876,2]
[337097532,1725424239400,-2511.53002121,0.000249,2]
[337097533,1725424239410,-250.0,0.00024943,2]
[337097534,1725424239420,-152.12072326,0.00024999,2]
[337097535,1725424239430,-500.0,0.00024999,2]
[337097536,1725424239443,-453.22784724,0.00024999,2]
[337097537,1725424239453,-500.0,0.00024999,2]
[337097538,1725424239462,-465.14244364,0.00024999,2]
[337097539,1725424239472,-500.0,0.00024999,2]
[337097540,1725424239482,-358986.98238543,0.00025,2]
[337097541,1725424239492,-37062.52874585,0.00025,2]
[337097542,1725424239502,-10364.0,0.00025,2]
[337097543,1725424239513,-250.0,0.00025009,2]
[337097544,1725424239528,-250.0,0.00025075,2]
[337097545,1725424239539,-21096.92441612,0.0002509,15]
[337097546,1725424239550,-123295.75534643,0.0002509,2]
[337097547,1725424239560,-250.0,0.00025142,2]
[337097548,1725424239570,-250.0,0.00025208,2]
[337097549,1725424239581,-250.0,0.00025275,2]
[337097550,1725424239592,-250.0,0.00025341,2]
[337097551,1725424239604,-250.0,0.00025407,2]
[337097552,1725424239614,-250.0,0.00025474,2]
[337097553,1725424239625,-514.6987691,0.00026212,2]
[337097554,1725424239635,-150.0,0.000264,2]
[337097555,1725424239646,-326.33572121,0.00026457,2]
[337097556,1725424239659,-13299.38378041,0.000266,10]
[337097557,1725424239669,-287.0,0.00027082,2]
[337097558,1725424239679,-1000.0,0.00027287,2]
[337097559,1725424239693,-172.65810162,0.00027287,2]
[337097560,1725424239703,-579.62663398,0.00027297,2]
[337097561,1725424239714,-500.0,0.00027366,2]
[337097562,1725424239724,-161.71349615,0.00027366,2]
[337097563,1725424239734,-159.48676622,0.00027366,2]
[337097564,1725424239745,-1438973.31933,0.00027367,2]
[337097565,1725424239755,-500.0,0.00027373,2]
[337097566,1725424239767,-404968.098966,0.00027377,3]
[337097567,1725424239777,-503.21498455,0.00027397,2]
[337097568,1725424239786,-500.0,0.00027397,2]
[337097569,1725424239796,-446.3662837,0.00027397,2]
[337097570,1725424239806,-626.18037089,0.00027397,2]
[337097571,1725424239816,-500.0,0.00027397,2]
[337097572,1725424239826,-500.0,0.00027397,2]
[337097573,1725424239836,-500.0,0.00027397,2]
[337097574,1725424239846,-500.0,0.00027397,2]
[337097575,1725424239857,-505.84427358,0.00027397,2]
[337097576,1725424239867,-500.0,0.00027397,2]
[337097577,1725424239877,-500.0,0.00027397,2]
[337097578,1725424239886,-500.0,0.00027397,2]
[337097579,1725424239897,-500.0,0.00027397,2]
[337097580,1725424239906,-592.83435881,0.00027397,2]
[337097581,1725424239916,-500.0,0.00027397,2]
[337097582,1725424239925,-500.0,0.00027397,2]
[337097583,1725424239936,-500.0,0.00027397,2]
[337097584,1725424239946,-500.0,0.00027397,2]
[337097585,1725424239955,-500.0,0.00027397,2]
[337097586,1725424239965,-500.0,0.00027397,2]
[337097587,1725424239974,-500.0,0.00027397,2]
[337097588,1725424239984,-500.0,0.00027397,2]
[337097589,1725424239993,-500.0,0.00027397,2]
[337097590,1725424240003,-579.23,0.00027397,2]
[337097591,1725424240012,-500.0,0.00027397,2]
[337097592,1725424240021,-500.0,0.00027397,2]
[337097593,1725424240031,-500.0,0.00027397,2]
[337097594,1725424240040,-500.0,0.00027397,2]
[337097595,1725424240052,-500.0,0.00027397,2]
[337097596,1725424240062,-536.3871627,0.00027397,2]
[337097597,1725424240071,-509.80361924,0.00027397,2]
[337097598,1725424240080,-500.0,0.00027397,2]
[337097599,1725424240090,-500.0,0.00027397,2]
[337097600,1725424240101,-500.0,0.00027397,2]
[337097601,1725424240111,-500.0,0.00027397,2]
[337097602,1725424240120,-500.0,0.00027397,2]
[337097603,1725424240130,-500.0,0.00027397,2]
[337097604,1725424240140,-500.0,0.00027397,2]
[337097605,1725424240150,-500.0,0.00027397,2]
[337097606,1725424240160,-500.0,0.00027397,2]
[337097607,1725424240170,-500.0,0.00027397,2]
[337097608,1725424240180,-500.0,0.00027397,2]
[337097609,1725424240193,-500.0,0.00027397,2]
[337097613,1725424240224,-500.0,0.00027397,2]
[337097614,1725424240233,-500.0,0.00027397,2]
[337097615,1725424240242,-500.0,0.00027397,2]
[337097616,1725424240251,-500.0,0.00027397,2]
[337097617,1725424240263,-500.0,0.00027397,2]
[337097618,1725424240272,-500.0,0.00027397,2]
[337097619,1725424240281,-502.11041384,0.00027397,2]
[337097620,1725424240291,-295.78506738,0.00027397,2]
[337097621,1725424240300,-500.0,0.00027397,2]
[337097622,1725424240310,-500.0,0.00027397,2]
[337097623,1725424240319,-500.0,0.00027397,2]
[337097624,1725424240328,-500.0,0.00027397,2]
[337097625,1725424240338,-500.0,0.00027397,2]
[337097626,1725424240347,-500.0,0.00027397,2]
[337097627,1725424240356,-500.0,0.00027397,2]
[337097629,1725424240366,-764.59,0.00027397,2]
[337097630,1725424240375,-500.0,0.00027397,2]
[337097631,1725424240384,-500.0,0.00027397,2]
[337097632,1725424240393,-665.35,0.00027397,2]
[337097633,1725424240403,-500.0,0.00027397,2]
[337097634,1725424240412,-500.0,0.00027397,2]
[337097635,1725424240422,-500.0,0.00027397,2]
[337097636,1725424240431,-500.0,0.00027397,2]
[337097637,1725424240450,-500.0,0.00027397,2]
[337097638,1725424240460,-271.16798836,0.00027397,2]
[337097639,1725424240470,-1153.31,0.00027397,2]
[337097640,1725424240479,-500.0,0.00027397,2]
[337097641,1725424240488,-500.0,0.00027397,2]
[337097642,1725424240498,-500.0,0.00027397,2]
[337097643,1725424240507,-3487.0,0.00027397,2]
[337097644,1725424240517,-575.36315368,0.00027397,2]
[337097645,1725424240529,-500.0,0.00027397,2]
[337097646,1725424240538,-500.0,0.00027397,2]
[337097647,1725424240547,-500.0,0.00027397,2]
[337097648,1725424240557,-500.0,0.00027397,2]
[337097649,1725424240567,-500.0,0.00027397,2]
[337097651,1725424240576,-1839.93,0.00027397,2]
[337097652,1725424240586,-500.0,0.00027397,2]
[337097654,1725424240596,-989.52,0.00027397,2]
[337097655,1725424240608,-500.0,0.00027397,2]
[337097656,1725424240619,-500.0,0.00027397,2]
[337097657,1725424240628,-500.0,0.00027397,2]
[337097658,1725424240638,-598.66,0.00027397,2]
[337097659,1725424240647,-505.88458329,0.00027397,2]
[337097660,1725424240656,-500.0,0.00027397,2]
[337097661,1725424240666,-500.0,0.00027397,2]
[337097662,1725424240677,-614.2,0.00027397,2]
[337097663,1725424240688,-500.0,0.00027397,2]
[337097664,1725424240698,-500.0,0.00027397,2]
[337097665,1725424240708,-500.0,0.00027397,2]
[337097666,1725424240718,-500.0,0.00027397,2]
[337097667,1725424240727,-500.0,0.00027397,2]
[337097668,1725424240738,-9241.29,0.00027397,2]
[337097669,1725424240748,-500.0,0.00027397,2]
[337097670,1725424240757,-500.0,0.00027397,2]
[337097671,1725424240767,-500.0,0.00027397,2]
[337097672,1725424240779,-1119.47,0.00027397,2]
[337097673,1725424240788,-500.0,0.00027397,2]
[337097674,1725424240797,-823.2,0.00027397,2]
[337097675,1725424240806,-815.56,0.00027397,2]
[337097676,1725424240816,-1389.49,0.00027397,2]
[337097677,1725424240825,-500.0,0.00027397,2]
[337097678,1725424240835,-500.0,0.00027397,2]
[337097679,1725424240844,-500.0,0.00027397,2]
[337097680,1725424240855,-500.0,0.00027397,2]
[337097681,1725424240865,-500.0,0.00027397,2]
[337097682,1725424240877,-500.0,0.00027397,2]
[337097683,1725424240888,-600.82780653,0.00027397,2]
[337097684,1725424240899,-500.0,0.00027397,2]
[337097685,1725424240910,-500.0,0.00027397,2]
[337097686,1725424240919,-500.0,0.00027397,2]
[337097687,1725424240930,-585.46,0.00027397,2]
[337097688,1725424240940,-500.0,0.00027397,2]
[337097689,1725424240949,-515.46473338,0.00027397,2]
[337097690,1725424240959,-500.0,0.00027397,2]
[337097691,1725424240970,-801.84,0.00027397,2]
[337097692,1725424240981,-500.0,0.00027397,2]
[337097693,1725424240992,-500.0,0.00027397,2]
[337097694,1725424241002,-500.0,0.00027397,2]
[337097695,1725424241012,-412.1777429,0.00027397,2]
[337097696,1725424241022,-500.0,0.00027397,2]
[337097697,1725424241032,-479.97132967,0.00027397,2]
[337097698,1725424241043,-500.0,0.00027397,2]
[337097699,1725424241055,-500.0,0.00027397,2]
[337097700,1725424241066,-500.0,0.00027397,2]
[337097701,1725424241076,-500.0,0.00027397,2]
[337097702,1725424241085,-1311.97,0.00027397,2]
[337097703,1725424241095,-2316.94,0.00027397,2]
[337097704,1725424241104,-500.0,0.00027397,2]
[337097705,1725424241113,-500.0,0.00027397,2]
[337097706,1725424241125,-500.0,0.00027397,2]
[337097707,1725424241137,-4046.85,0.00027397,2]
[337097708,1725424241149,-500.0,0.00027397,2]
[337097709,1725424241158,-500.0,0.00027397,2]
[337097710,1725424241168,-500.0,0.00027397,2]
[337097711,1725424241177,-500.0,0.00027397,2]
[337097712,1725424241187,-500.0,0.00027397,2]
[337097713,1725424241196,-500.0,0.00027397,2]
[337097714,1725424241205,-500.0,0.00027397,2]
[337097715,1725424241214,-500.0,0.00027397,2]
[337097716,1725424241224,-500.0,0.00027397,2]
[337097717,1725424241233,-500.0,0.00027397,2]
[337097718,1725424241242,-6880.82,0.00027397,2]
[337097719,1725424241252,-500.0,0.00027397,2]
[337097720,1725424241261,-500.0,0.00027397,2]
[337097721,1725424241271,-500.0,0.00027397,2]
[337097722,1725424241280,-500.0,0.00027397,2]
[337097723,1725424241290,-500.0,0.00027397,2]
[337097724,1725424241300,-500.0,0.00027397,2]
[337097725,1725424241309,-500.0,0.00027397,2]
[337097726,1725424241319,-500.0,0.00027397,2]
[337097727,1725424241328,-260.0,0.00027397,2]
[337097728,1725424241337,-500.0,0.00027397,2]
[337097729,1725424241347,-325461.22,0.000274,14]
[337097730,1725424241357,-1025.66,0.000274,14]
[337097731,1725424241366,-79093.97592466,0.000274,14]
[337097732,1725424241381,-12062.11407534,0.000274,14]
[337097733,1725424241390,-420.0,0.00027499,2]
[337097734,1725424241400,-500.0,0.0002767,2]
[337097735,1725424241410,-500.0,0.0002767,2]
[337097736,1725424241419,-500.0,0.0002767,2]
[337097737,1725424241428,-500.0,0.0002767,2]
[337097738,1725424241437,-500.0,0.0002767,2]
[337097739,1725424241447,-500.0,0.0002767,2]
[337097740,1725424241456,-500.0,0.0002767,2]
[337097741,1725424241465,-500.0,0.0002767,2]
[337097742,1725424241474,-500.0,0.0002767,2]
[337097743,1725424241483,-505.28799388,0.0002767,2]
[337097744,1725424241493,-447.26973218,0.0002767,2]
[337097745,1725424241502,-474.40963994,0.0002767,2]
[337097746,1725424241511,-500.0,0.0002767,2]
[337097747,1725424241521,-609.18962507,0.0002767,2]
[337097748,1725424241534,-500.0,0.0002767,2]
[337097749,1725424241544,-500.0,0.0002767,2]
[337097750,1725424241553,-500.0,0.0002767,2]
[337097751,1725424241563,-500.0,0.0002767,2]
[337097752,1725424241573,-372.67791587,0.0002767,2]
[337097753,1725424241582,-500.0,0.0002767,2]
[337097754,1725424241593,-505.56216846,0.0002767,2]
[337097755,1725424241605,-500.0,0.0002767,2]
[337097756,1725424241616,-500.0,0.0002767,2]
[337097757,1725424241626,-433.01092873,0.0002767,2]
[337097758,1725424241636,-500.0,0.0002767,2]
[337097759,1725424241645,-500.0,0.0002767,2]
[337097760,1725424241654,-507.38018017,0.0002767,2]
[337097761,1725424241663,-500.0,0.0002767,2]
[337097762,1725424241673,-357.65214362,0.0002767,2]
[337097763,1725424241683,-500.0,0.0002767,2]
[337097764,1725424241695,-500.0,0.0002767,2]
[337097765,1725424241705,-500.0,0.0002767,2]
[337097766,1725424241716,-585.69664149,0.0002767,2]
[337097767,1725424241727,-500.0,0.0002767,2]
[337097768,1725424241737,-500.0,0.0002767,2]
[337097769,1725424241748,-500.0,0.0002767,2]
[337097770,1725424241759,-308.24021189,0.0002767,2]
[337097771,1725424241771,-503.87246671,0.0002767,2]
[337097772,1725424241780,-500.0,0.0002767,2]
[337097773,1725424241791,-500.0,0.0002767,2]
[337097774,1725424241802,-500.0,0.0002767,2]
[337097775,1725424241813,-500.0,0.0002767,2]
[337097776,1725424241822,-374.27448049,0.0002767,2]
[337097777,1725424241834,-500.0,0.0002767,2]
[337097778,1725424241844,-507.10062357,0.0002767,2]
[337097779,1725424241854,-500.0,0.0002767,2]
[337097780,1725424241864,-500.0,0.0002767,2]
[337097781,1725424241874,-500.0,0.0002767,2]
[337097782,1725424241884,-500.0,0.0002767,2]
[337097783,1725424241894,-507.92337057,0.0002767,2]
[337097784,1725424241904,-500.0,0.0002767,2]
[337097785,1725424241916,-500.0,0.0002767,2]
[337097786,1725424241926,-500.0,0.0002767,2]
[337097787,1725424241937,-500.0,0.0002767,2]
[337097788,1725424241948,-500.0,0.0002767,2]
[337097789,1725424241960,-506.69,0.0002767,2]
[337097790,1725424241971,-508.58678562,0.0002767,2]
[337097791,1725424241981,-500.0,0.0002767,2]
[337097792,1725424241991,-500.0,0.0002767,2]
[337097793,1725424242000,-500.0,0.0002767,2]
[337097794,1725424242010,-502.90685513,0.0002767,2]
[337097795,1725424242019,-500.0,0.0002767,2]
[337097796,1725424242029,-500.0,0.0002767,2]
[337097797,1725424242040,-500.0,0.0002767,2]
[337097798,1725424242050,-500.0,0.0002767,2]
[337097799,1725424242060,-500.0,0.0002767,2]
[337097800,1725424242070,-500.0,0.0002767,2]
[337097801,1725424242079,-503.75105686,0.0002767,2]
[337097802,1725424242089,-500.0,0.0002767,2]
[337097803,1725424242101,-500.0,0.0002767,2]
[337097804,1725424242111,-500.0,0.0002767,2]
[337097805,1725424242122,-500.0,0.0002767,2]
[337097806,1725424242134,-500.0,0.0002767,2]
[337097807,1725424242145,-500.0,0.0002767,2]
[337097808,1725424242155,-500.0,0.0002767,2]
[337097809,1725424242165,-529.4,0.0002767,2]
[337097810,1725424242175,-500.0,0.0002767,2]
[337097811,1725424242187,-500.0,0.0002767,2]
[337097812,1725424242197,-500.0,0.0002767,2]
[337097813,1725424242207,-500.0,0.0002767,2]
[337097814,1725424242217,-500.0,0.0002767,2]
[337097815,1725424242226,-500.0,0.0002767,2]
[337097816,1725424242236,-500.0,0.0002767,2]